[Event "*** SCC Grand Prix: Titled Tuesday Blitz"]
[Site "Chess.com"]
[Date "2020.07.14"]
[Round "9"]
[White "MasterKroket"]
[Black "Roza_Idrisova"]
[Result "0-1"]
[WhiteElo "2379"]
[BlackElo "2255"]
[TimeControl "180+1"]
[EndTime "11:46:43 PDT"]
[Termination "Roza_Idrisova won on time"]

1. d4 {[%clk 0:03:00.9]} 1... d5 {[%clk 0:02:59.3]} 2. c4 {[%clk 0:03:01.4]}
2... c6 {[%clk 0:02:58.6]} 3. Nf3 {[%clk 0:03:01.7]} 3... Nf6 {[%clk 0:02:58.2]}
4. Nc3 {[%clk 0:03:02.3]} 4... a6 {[%clk 0:02:57]} 5. c5 {[%clk 0:03:01.7]} 5...
Nbd7 {[%clk 0:02:56.4]} 6. Bf4 {[%clk 0:03:00.2]} 6... Nh5 {[%clk 0:02:56.4]} 7.
Bd2 {[%clk 0:03:00.3]} 7... Nhf6 {[%clk 0:02:56.2]} 8. b4 {[%clk 0:02:55.7]}
8... Qc7 {[%clk 0:02:55.2]} 9. g3 {[%clk 0:02:54.2]} 9... e5 {[%clk 0:02:55]}
10. dxe5 {[%clk 0:02:53.4]} 10... Nxe5 {[%clk 0:02:54.9]} 11. Bg2 {[%clk
0:02:50.3]} 11... Be7 {[%clk 0:02:53.5]} 12. Bf4 {[%clk 0:02:48.9]} 12... Nxf3+
{[%clk 0:02:53.4]} 13. Bxf3 {[%clk 0:02:45.5]} 13... Qd8 {[%clk 0:02:53.1]} 14.
O-O {[%clk 0:02:44.2]} 14... O-O {[%clk 0:02:52.3]} 15. Na4 {[%clk 0:02:39]}
15... Bf5 {[%clk 0:02:39.3]} 16. Nb6 {[%clk 0:02:37.6]} 16... Ra7 {[%clk
0:02:37.6]} 17. Re1 {[%clk 0:02:10.8]} 17... h6 {[%clk 0:02:36.7]} 18. Qd2
{[%clk 0:01:55.6]} 18... Be4 {[%clk 0:02:28.2]} 19. Bxe4 {[%clk 0:01:52.6]}
19... Nxe4 {[%clk 0:02:27.8]} 20. Qd3 {[%clk 0:01:50.9]} 20... Nf6 {[%clk
0:02:16.7]} 21. a4 {[%clk 0:01:47.3]} 21... Nd7 {[%clk 0:02:16.1]} 22. a5 {[%clk
0:01:47.2]} 22... Re8 {[%clk 0:02:06.8]} 23. Rad1 {[%clk 0:01:45.4]} 23... Bf6
{[%clk 0:02:04]} 24. e4 {[%clk 0:01:43.8]} 24... g5 {[%clk 0:01:53.9]} 25. Bd6
{[%clk 0:01:38.7]} 25... dxe4 {[%clk 0:01:46.5]} 26. Rxe4 {[%clk 0:01:36.4]}
26... Nxb6 {[%clk 0:01:43.9]} 27. axb6 {[%clk 0:01:29.5]} 27... Ra8 {[%clk
0:01:43.7]} 28. f4 {[%clk 0:01:20.7]} 28... Qd7 {[%clk 0:01:38.8]} 29. fxg5
{[%clk 0:01:19.3]} 29... hxg5 {[%clk 0:01:38.3]} 30. Rf1 {[%clk 0:01:19.1]}
30... Bg7 {[%clk 0:01:34]} 31. Rfe1 {[%clk 0:00:55.8]} 31... Rxe4 {[%clk
0:01:33]} 32. Rxe4 {[%clk 0:00:55.8]} 32... Re8 {[%clk 0:01:32.1]} 33. Qe2
{[%clk 0:00:55.5]} 33... Rxe4 {[%clk 0:01:30.4]} 34. Qxe4 {[%clk 0:00:56.4]}
34... Qe6 {[%clk 0:01:19.6]} 35. Qb1 {[%clk 0:00:39.4]} 35... Bd4+ {[%clk
0:01:15.1]} 36. Kf1 {[%clk 0:00:29.5]} 36... Qf6+ {[%clk 0:01:13.6]} 37. Ke2
{[%clk 0:00:26.6]} 37... Qf2+ {[%clk 0:01:11.5]} 38. Kd3 {[%clk 0:00:20]} 38...
Qe3+ {[%clk 0:01:08.8]} 39. Kc2 {[%clk 0:00:20.2]} 39... Qc3+ {[%clk 0:01:05]}
40. Kd1 {[%clk 0:00:20.3]} 40... Qf3+ {[%clk 0:01:00.5]} 41. Kc2 {[%clk
0:00:19.9]} 41... Qe4+ {[%clk 0:00:58.6]} 42. Kd1 {[%clk 0:00:20.1]} 42... Qxb1+
{[%clk 0:00:57.9]} 0-1

[Event "*** SCC Grand Prix: Titled Tuesday Blitz"]
[Site "Chess.com"]
[Date "2020.07.14"]
[Round "9"]
[White "Alopekos"]
[Black "Shuvalov"]
[Result "0-1"]
[WhiteElo "2345"]
[BlackElo "2493"]
[TimeControl "180+1"]
[EndTime "11:46:44 PDT"]
[Termination "Shuvalov won by checkmate"]

1. e4 {[%clk 0:03:00.9]} 1... e6 {[%clk 0:02:56.9]} 2. d4 {[%clk 0:03:00.5]}
2... d5 {[%clk 0:02:57]} 3. Nc3 {[%clk 0:03:01.1]} 3... Bb4 {[%clk 0:02:56.8]}
4. e5 {[%clk 0:03:01.3]} 4... c5 {[%clk 0:02:57.1]} 5. a3 {[%clk 0:03:01.9]}
5... Bxc3+ {[%clk 0:02:57.5]} 6. bxc3 {[%clk 0:03:02.8]} 6... Ne7 {[%clk
0:02:58.1]} 7. Qg4 {[%clk 0:03:02.7]} 7... cxd4 {[%clk 0:02:57.7]} 8. Qxg7
{[%clk 0:03:02.4]} 8... Rg8 {[%clk 0:02:57.4]} 9. Qxh7 {[%clk 0:03:03]} 9... Qc7
{[%clk 0:02:58]} 10. Ne2 {[%clk 0:03:02.6]} 10... Nbc6 {[%clk 0:02:57.8]} 11. f4
{[%clk 0:03:02.9]} 11... Bd7 {[%clk 0:02:57.6]} 12. Qd3 {[%clk 0:02:56.4]} 12...
dxc3 {[%clk 0:02:57.4]} 13. Rg1 {[%clk 0:02:47.9]} 13... O-O-O {[%clk
0:02:45.9]} 14. g4 {[%clk 0:02:46.7]} 14... d4 {[%clk 0:02:41.2]} 15. h4 {[%clk
0:02:41.7]} 15... Ng6 {[%clk 0:02:29]} 16. Qg3 {[%clk 0:01:44.8]} 16... f5
{[%clk 0:01:48.4]} 17. exf6 {[%clk 0:01:30.9]} 17... e5 {[%clk 0:01:48.6]} 18.
f5 {[%clk 0:01:16.4]} 18... Nf8 {[%clk 0:01:25.5]} 19. Qf3 {[%clk 0:00:38.7]}
19... Be8 {[%clk 0:01:00.3]} 20. Qe4 {[%clk 0:00:39.6]} 20... Nd7 {[%clk
0:00:50]} 21. g5 {[%clk 0:00:26.4]} 21... Nc5 {[%clk 0:00:43.4]} 22. Qg4 {[%clk
0:00:24.6]} 22... d3 {[%clk 0:00:32.5]} 23. Nxc3 {[%clk 0:00:24]} 23... Nd4
{[%clk 0:00:32.4]} 24. Kf2 {[%clk 0:00:12.5]} 24... Nxc2 {[%clk 0:00:27.5]} 25.
Rb1 {[%clk 0:00:09.9]} 25... d2 {[%clk 0:00:24]} 26. Bg2 {[%clk 0:00:10.3]}
26... Nd3+ {[%clk 0:00:18.3]} 27. Kg3 {[%clk 0:00:09.2]} 27... e4+ {[%clk
0:00:15.2]} 28. Kh3 {[%clk 0:00:06.7]} 28... Nf2# {[%clk 0:00:14.8]} 0-1

[Event "*** SCC Grand Prix: Titled Tuesday Blitz"]
[Site "Chess.com"]
[Date "2020.07.14"]
[Round "9"]
[White "boasovietica"]
[Black "BakaPG"]
[Result "0-1"]
[WhiteElo "2471"]
[BlackElo "2631"]
[TimeControl "180+1"]
[EndTime "11:46:48 PDT"]
[Termination "BakaPG won on time"]

1. e4 {[%clk 0:03:00.9]} 1... e6 {[%clk 0:02:57.2]} 2. d4 {[%clk 0:02:55.3]}
2... d5 {[%clk 0:02:52.8]} 3. Nd2 {[%clk 0:02:55.3]} 3... a6 {[%clk 0:02:51.9]}
4. Ngf3 {[%clk 0:02:53]} 4... Nf6 {[%clk 0:02:49.4]} 5. exd5 {[%clk 0:02:40]}
5... exd5 {[%clk 0:02:47.9]} 6. Bd3 {[%clk 0:02:40.2]} 6... c5 {[%clk
0:02:44.9]} 7. c3 {[%clk 0:02:27.6]} 7... c4 {[%clk 0:02:43.9]} 8. Bc2 {[%clk
0:02:21.2]} 8... Bd6 {[%clk 0:02:43.2]} 9. O-O {[%clk 0:02:20.4]} 9... O-O
{[%clk 0:02:42.5]} 10. Re1 {[%clk 0:02:20.6]} 10... Bg4 {[%clk 0:02:41.1]} 11.
Nf1 {[%clk 0:02:18.1]} 11... Nbd7 {[%clk 0:02:39.1]} 12. Ng3 {[%clk 0:02:17.7]}
12... Re8 {[%clk 0:02:35.6]} 13. h3 {[%clk 0:02:10.2]} 13... Rxe1+ {[%clk
0:02:32.7]} 14. Qxe1 {[%clk 0:02:04]} 14... Bxf3 {[%clk 0:02:32.8]} 15. gxf3
{[%clk 0:02:03.6]} 15... g6 {[%clk 0:02:31.4]} 16. Bg5 {[%clk 0:01:59.9]} 16...
Qc7 {[%clk 0:02:31.4]} 17. Kg2 {[%clk 0:01:56]} 17... Re8 {[%clk 0:02:27.8]} 18.
Qd2 {[%clk 0:01:56.1]} 18... Bxg3 {[%clk 0:02:21]} 19. fxg3 {[%clk 0:01:51.4]}
19... Nh5 {[%clk 0:02:20.9]} 20. Bh4 {[%clk 0:01:14.1]} 20... Nf8 {[%clk
0:02:17.3]} 21. Re1 {[%clk 0:01:09.4]} 21... Ne6 {[%clk 0:02:16.3]} 22. f4
{[%clk 0:00:45.3]} 22... Qd7 {[%clk 0:01:50.9]} 23. f5 {[%clk 0:00:41.1]} 23...
Neg7 {[%clk 0:01:40.4]} 24. fxg6 {[%clk 0:00:35.2]} 24... hxg6 {[%clk
0:01:27.2]} 25. Rxe8+ {[%clk 0:00:30.8]} 25... Nxe8 {[%clk 0:01:25.8]} 26. Qe3
{[%clk 0:00:26.4]} 26... Nhg7 {[%clk 0:01:23.1]} 27. Qe7 {[%clk 0:00:24.1]}
27... Qb5 {[%clk 0:01:21.4]} 28. b3 {[%clk 0:00:01.7]} 28... cxb3 {[%clk
0:01:20.4]} 29. axb3 {[%clk 0:00:02.6]} 29... Nc7 {[%clk 0:01:09.1]} 30. Qe3
{[%clk 0:00:02.6]} 30... Nce6 {[%clk 0:01:07.6]} 31. Qd3 {[%clk 0:00:02.5]}
31... Qc6 {[%clk 0:01:06]} 32. Bf6 {[%clk 0:00:02.9]} 32... Nf5 {[%clk 0:01:04]}
33. Be5 {[%clk 0:00:02.8]} 33... Ng5 {[%clk 0:01:00]} 34. g4 {[%clk 0:00:02.6]}
34... Nh4+ {[%clk 0:00:58.4]} 35. Kg3 {[%clk 0:00:02.6]} 35... Nhf3 {[%clk
0:00:58.5]} 36. Qe3 {[%clk 0:00:02.5]} 36... Nxe5 {[%clk 0:00:57.2]} 37. Qxe5
{[%clk 0:00:02.4]} 37... Qxc3+ {[%clk 0:00:55.1]} 38. Kf4 {[%clk 0:00:02.1]}
38... Qd2+ {[%clk 0:00:53.7]} 39. Qe3 {[%clk 0:00:01.5]} 39... Nxh3+ {[%clk
0:00:52.9]} 0-1

[Event "*** SCC Grand Prix: Titled Tuesday Blitz"]
[Site "Chess.com"]
[Date "2020.07.14"]
[Round "9"]
[White "kassablanca"]
[Black "ikhasu"]
[Result "0-1"]
[WhiteElo "2594"]
[BlackElo "2429"]
[TimeControl "180+1"]
[EndTime "11:46:49 PDT"]
[Termination "ikhasu won by resignation"]

1. e4 {[%clk 0:03:00.9]} 1... c5 {[%clk 0:02:58.8]} 2. Nf3 {[%clk 0:03:01.2]}
2... Nc6 {[%clk 0:02:58.7]} 3. d4 {[%clk 0:03:01]} 3... cxd4 {[%clk 0:02:58.9]}
4. Nxd4 {[%clk 0:03:01.9]} 4... g6 {[%clk 0:02:59.1]} 5. c4 {[%clk 0:03:00.8]}
5... Nf6 {[%clk 0:02:58]} 6. Nc3 {[%clk 0:03:00.2]} 6... d6 {[%clk 0:02:57.9]}
7. Be2 {[%clk 0:02:57.8]} 7... Nxd4 {[%clk 0:02:55.2]} 8. Qxd4 {[%clk
0:02:57.2]} 8... Bg7 {[%clk 0:02:55.8]} 9. Bg5 {[%clk 0:02:53.5]} 9... O-O
{[%clk 0:02:55.6]} 10. Qd2 {[%clk 0:02:52.2]} 10... a5 {[%clk 0:02:55.3]} 11.
O-O {[%clk 0:02:51.1]} 11... a4 {[%clk 0:02:55.4]} 12. Rac1 {[%clk 0:02:49.8]}
12... Qa5 {[%clk 0:02:53.6]} 13. f3 {[%clk 0:02:47.7]} 13... Be6 {[%clk
0:02:47.7]} 14. Nd5 {[%clk 0:01:41.7]} 14... Qxd2 {[%clk 0:02:35.6]} 15. Nxe7+
{[%clk 0:01:39.4]} 15... Kh8 {[%clk 0:02:34.3]} 16. Bxd2 {[%clk 0:01:39.3]}
16... Rfe8 {[%clk 0:02:34]} 17. Nd5 {[%clk 0:01:36.9]} 17... Nxd5 {[%clk
0:02:33.3]} 18. cxd5 {[%clk 0:01:34.9]} 18... Bxd5 {[%clk 0:02:32.2]} 19. Bb5
{[%clk 0:01:26.9]} 19... Re5 {[%clk 0:02:05.4]} 20. Bc3 {[%clk 0:01:08]} 20...
Bxa2 {[%clk 0:02:04.7]} 21. Bxe5 {[%clk 0:01:04.5]} 21... Bxe5 {[%clk
0:02:04.7]} 22. Rc2 {[%clk 0:01:01.5]} 22... Bb3 {[%clk 0:01:57.8]} 23. Re2
{[%clk 0:01:00.2]} 23... Ra5 {[%clk 0:01:31.2]} 24. Bd3 {[%clk 0:01:00]} 24...
b5 {[%clk 0:01:30.7]} 25. Rc1 {[%clk 0:00:59]} 25... b4 {[%clk 0:01:28.2]} 26.
Bb1 {[%clk 0:00:50.4]} 26... Kg7 {[%clk 0:01:11.1]} 27. g3 {[%clk 0:00:48.2]}
27... a3 {[%clk 0:01:02.5]} 28. bxa3 {[%clk 0:00:48.1]} 28... bxa3 {[%clk
0:01:02.3]} 29. Ba2 {[%clk 0:00:36.8]} 29... Bxa2 {[%clk 0:01:02.1]} 30. Rxa2
{[%clk 0:00:36.2]} 30... Bb2 {[%clk 0:01:02.5]} 31. Rc2 {[%clk 0:00:34.7]} 31...
Rb5 {[%clk 0:01:00.4]} 32. Kf2 {[%clk 0:00:33.3]} 32... Rb3 {[%clk 0:01:00.4]}
33. Ke2 {[%clk 0:00:33.2]} 33... Kf6 {[%clk 0:00:59.5]} 34. Rd2 {[%clk
0:00:29.2]} 34... Ke6 {[%clk 0:00:59.4]} 35. Rd5 {[%clk 0:00:25.9]} 35... Bc3
{[%clk 0:00:57.2]} 36. Kd3 {[%clk 0:00:21.2]} 36... Bb2+ {[%clk 0:00:55.1]} 37.
Kc2 {[%clk 0:00:19.2]} 37... Rxf3 {[%clk 0:00:54.5]} 38. Rd2 {[%clk 0:00:14]}
38... Re3 {[%clk 0:00:53.4]} 39. Rf2 {[%clk 0:00:13.8]} 39... Rxe4 {[%clk
0:00:53.2]} 40. Rd2 {[%clk 0:00:13.6]} 40... f5 {[%clk 0:00:52.7]} 41. Kb3
{[%clk 0:00:13.4]} 41... Re3+ {[%clk 0:00:52]} 42. Kc2 {[%clk 0:00:13.6]} 42...
Ke5 {[%clk 0:00:50.1]} 43. Rf2 {[%clk 0:00:10.7]} 43... d5 {[%clk 0:00:49.8]}
44. Rd2 {[%clk 0:00:10.3]} 44... d4 {[%clk 0:00:49.7]} 45. Kd1 {[%clk
0:00:10.7]} 45... Ke4 {[%clk 0:00:49.3]} 0-1

[Event "*** SCC Grand Prix: Titled Tuesday Blitz"]
[Site "Chess.com"]
[Date "2020.07.14"]
[Round "9"]
[White "ChelsieMonica"]
[Black "c_r_e_e_p_e_r"]
[Result "0-1"]
[WhiteElo "2402"]
[BlackElo "2311"]
[TimeControl "180+1"]
[EndTime "11:46:49 PDT"]
[Termination "c_r_e_e_p_e_r won by checkmate"]

1. c4 {[%clk 0:03:00.9]} 1... e5 {[%clk 0:02:58.2]} 2. Nc3 {[%clk 0:03:01.4]}
2... Nf6 {[%clk 0:02:58.3]} 3. g3 {[%clk 0:03:01.8]} 3... Bc5 {[%clk 0:02:53.7]}
4. Bg2 {[%clk 0:03:00.1]} 4... Nc6 {[%clk 0:02:50.1]} 5. Nf3 {[%clk 0:02:59.2]}
5... d6 {[%clk 0:02:49.2]} 6. O-O {[%clk 0:02:59.2]} 6... O-O {[%clk 0:02:45]}
7. e3 {[%clk 0:02:59.2]} 7... a6 {[%clk 0:02:23.2]} 8. d4 {[%clk 0:02:47.6]}
8... exd4 {[%clk 0:02:20]} 9. exd4 {[%clk 0:02:48.5]} 9... Ba7 {[%clk
0:02:20.6]} 10. h3 {[%clk 0:02:46.8]} 10... h6 {[%clk 0:02:20.1]} 11. Re1 {[%clk
0:02:44.7]} 11... Bf5 {[%clk 0:02:18.8]} 12. a3 {[%clk 0:02:22.7]} 12... Qd7
{[%clk 0:02:18.2]} 13. g4 {[%clk 0:02:18.1]} 13... Bh7 {[%clk 0:02:13.6]} 14. b4
{[%clk 0:02:16.6]} 14... Rfe8 {[%clk 0:02:11.6]} 15. Be3 {[%clk 0:02:04.9]}
15... Ne4 {[%clk 0:02:03.9]} 16. Rc1 {[%clk 0:01:47.5]} 16... Nxc3 {[%clk
0:02:01.1]} 17. Rxc3 {[%clk 0:01:48.4]} 17... Be4 {[%clk 0:01:56.8]} 18. d5
{[%clk 0:01:47.6]} 18... Bxf3 {[%clk 0:01:25.5]} 19. Bxf3 {[%clk 0:01:32.6]}
19... Ne5 {[%clk 0:01:25.5]} 20. Bg2 {[%clk 0:01:31.1]} 20... Bxe3 {[%clk
0:01:22.2]} 21. Rexe3 {[%clk 0:01:31.2]} 21... Ng6 {[%clk 0:01:20.8]} 22. Qd4
{[%clk 0:01:25.9]} 22... Rxe3 {[%clk 0:01:15.1]} 23. Rxe3 {[%clk 0:01:23.5]}
23... Re8 {[%clk 0:01:15.2]} 24. f4 {[%clk 0:01:07.6]} 24... Qa4 {[%clk
0:00:47.1]} 25. f5 {[%clk 0:00:59.9]} 25... Rxe3 {[%clk 0:00:41]} 26. Qxe3
{[%clk 0:00:59.3]} 26... Qd1+ {[%clk 0:00:39.7]} 27. Kh2 {[%clk 0:00:57]} 27...
Ne5 {[%clk 0:00:40]} 28. f6 {[%clk 0:00:54.8]} 28... g5 {[%clk 0:00:28.7]} 29.
c5 {[%clk 0:00:38.1]} 29... Qa1 {[%clk 0:00:14.3]} 30. cxd6 {[%clk 0:00:36.2]}
30... cxd6 {[%clk 0:00:15.2]} 31. Qb6 {[%clk 0:00:35.9]} 31... Qb2 {[%clk
0:00:04.7]} 32. Qd8+ {[%clk 0:00:32.1]} 32... Kh7 {[%clk 0:00:04]} 33. Qf8
{[%clk 0:00:32.1]} 33... Nf3+ {[%clk 0:00:01.3]} 34. Kg3 {[%clk 0:00:32.1]}
34... Qe5+ {[%clk 0:00:01.2]} 35. Kxf3 {[%clk 0:00:31.9]} 35... Qxf6+ {[%clk
0:00:01.5]} 36. Kg3 {[%clk 0:00:32.3]} 36... Qf4# {[%clk 0:00:01.4]} 0-1

[Event "*** SCC Grand Prix: Titled Tuesday Blitz"]
[Site "Chess.com"]
[Date "2020.07.14"]
[Round "9"]
[White "Duong57"]
[Black "sergivila"]
[Result "0-1"]
[WhiteElo "2252"]
[BlackElo "2369"]
[TimeControl "180+1"]
[EndTime "11:46:50 PDT"]
[Termination "sergivila won by resignation"]

1. d4 {[%clk 0:03:00.9]} 1... Nf6 {[%clk 0:02:59.6]} 2. c4 {[%clk 0:03:00.5]}
2... c5 {[%clk 0:02:57.9]} 3. d5 {[%clk 0:02:59.6]} 3... b5 {[%clk 0:02:58]} 4.
Qc2 {[%clk 0:02:53.2]} 4... b4 {[%clk 0:02:50.9]} 5. a3 {[%clk 0:02:51.9]} 5...
d6 {[%clk 0:02:43.7]} 6. e4 {[%clk 0:02:51.2]} 6... a5 {[%clk 0:02:41.5]} 7. Nf3
{[%clk 0:02:28.2]} 7... Nbd7 {[%clk 0:02:39.5]} 8. h3 {[%clk 0:02:26.8]} 8... g6
{[%clk 0:02:39.4]} 9. Be2 {[%clk 0:02:24.7]} 9... Bg7 {[%clk 0:02:39.5]} 10. O-O
{[%clk 0:02:24.5]} 10... O-O {[%clk 0:02:39.4]} 11. Be3 {[%clk 0:02:14.7]} 11...
Qc7 {[%clk 0:02:30.8]} 12. Nbd2 {[%clk 0:02:14.1]} 12... e5 {[%clk 0:02:27.2]}
13. axb4 {[%clk 0:01:51]} 13... cxb4 {[%clk 0:02:24.6]} 14. Nb3 {[%clk
0:01:23.6]} 14... a4 {[%clk 0:02:16.1]} 15. Nbd2 {[%clk 0:01:23.3]} 15... b3
{[%clk 0:02:14.9]} 16. Qc3 {[%clk 0:01:23.1]} 16... Bb7 {[%clk 0:02:02.9]} 17.
Qb4 {[%clk 0:01:21.9]} 17... Nc5 {[%clk 0:01:57.9]} 18. Bxc5 {[%clk 0:01:05.3]}
18... dxc5 {[%clk 0:01:58.8]} 19. Qb5 {[%clk 0:01:03.3]} 19... Ra5 {[%clk
0:01:50.2]} 20. d6 {[%clk 0:00:57]} 20... Rxb5 {[%clk 0:01:45.5]} 21. dxc7
{[%clk 0:00:56.8]} 21... Rb4 {[%clk 0:01:39.7]} 22. Nxe5 {[%clk 0:00:55.4]}
22... Nxe4 {[%clk 0:01:33.4]} 23. Nxe4 {[%clk 0:00:53]} 23... Bxe4 {[%clk
0:01:33.2]} 24. Nd7 {[%clk 0:00:46.8]} 24... Rc8 {[%clk 0:01:30.2]} 25. Nxc5
{[%clk 0:00:46.5]} 25... Bc6 {[%clk 0:01:20.6]} 26. Nd3 {[%clk 0:00:42.4]} 26...
Rb7 {[%clk 0:01:09.5]} 27. Bf3 {[%clk 0:00:33.2]} 27... Bxf3 {[%clk 0:01:04.9]}
28. gxf3 {[%clk 0:00:33]} 28... Ra7 {[%clk 0:01:01.1]} 29. Ra3 {[%clk
0:00:29.3]} 29... Bf8 {[%clk 0:00:55.7]} 30. c5 {[%clk 0:00:28.8]} 30... Rcxc7
{[%clk 0:00:54.8]} 31. Rfa1 {[%clk 0:00:28.2]} 31... Bxc5 {[%clk 0:00:50.4]} 32.
Rxa4 {[%clk 0:00:28.5]} 32... Rab7 {[%clk 0:00:44.2]} 33. Rc4 {[%clk 0:00:27.7]}
33... Bd6 {[%clk 0:00:43.9]} 34. Rac1 {[%clk 0:00:24]} 34... Rd7 {[%clk
0:00:34.2]} 35. Kf1 {[%clk 0:00:23.2]} 35... Kg7 {[%clk 0:00:34]} 36. Ke2 {[%clk
0:00:23.1]} 36... Be7 {[%clk 0:00:33.4]} 37. f4 {[%clk 0:00:22.6]} 37... Bf6
{[%clk 0:00:32.6]} 38. Kf3 {[%clk 0:00:19.3]} 38... Rxd3+ {[%clk 0:00:32.2]} 39.
Ke4 {[%clk 0:00:20.2]} 39... Rd2 {[%clk 0:00:31.8]} 0-1

[Event "*** SCC Grand Prix: Titled Tuesday Blitz"]
[Site "Chess.com"]
[Date "2020.07.14"]
[Round "9"]
[White "sasko1234"]
[Black "Miss_JJ20"]
[Result "0-1"]
[WhiteElo "2388"]
[BlackElo "2296"]
[TimeControl "180+1"]
[EndTime "11:46:52 PDT"]
[Termination "Miss_JJ20 won by resignation"]

1. b3 {[%clk 0:03:00.9]} 1... Nf6 {[%clk 0:02:58.1]} 2. Bb2 {[%clk 0:03:00.9]}
2... e6 {[%clk 0:02:58.6]} 3. e3 {[%clk 0:03:00.7]} 3... d5 {[%clk 0:02:58.3]}
4. f4 {[%clk 0:03:00.5]} 4... c5 {[%clk 0:02:56.6]} 5. Nf3 {[%clk 0:03:00.4]}
5... Nc6 {[%clk 0:02:56.8]} 6. Bb5 {[%clk 0:02:59.7]} 6... Bd6 {[%clk
0:02:56.6]} 7. Bxc6+ {[%clk 0:02:59.1]} 7... bxc6 {[%clk 0:02:56.6]} 8. O-O
{[%clk 0:02:59.7]} 8... O-O {[%clk 0:02:54.2]} 9. Ne5 {[%clk 0:02:51.3]} 9...
Qc7 {[%clk 0:02:50.7]} 10. d3 {[%clk 0:02:51.2]} 10... Nd7 {[%clk 0:02:45.2]}
11. Nxd7 {[%clk 0:02:50.5]} 11... Bxd7 {[%clk 0:02:43.1]} 12. Nd2 {[%clk
0:02:50]} 12... e5 {[%clk 0:02:40.7]} 13. f5 {[%clk 0:02:35.9]} 13... f6 {[%clk
0:02:38.2]} 14. e4 {[%clk 0:02:34.8]} 14... c4 {[%clk 0:02:14.2]} 15. dxc4
{[%clk 0:02:29]} 15... Bb4 {[%clk 0:01:28.3]} 16. c3 {[%clk 0:02:18.3]} 16...
Bc5+ {[%clk 0:01:26.6]} 17. Kh1 {[%clk 0:02:18.1]} 17... d4 {[%clk 0:00:53.1]}
18. b4 {[%clk 0:01:21.6]} 18... dxc3 {[%clk 0:00:48.8]} 19. Bxc3 {[%clk
0:01:21.5]} 19... Be7 {[%clk 0:00:47.9]} 20. c5 {[%clk 0:01:18.5]} 20... Rad8
{[%clk 0:00:47.6]} 21. Qe2 {[%clk 0:01:03.3]} 21... Be8 {[%clk 0:00:44.1]} 22.
Nc4 {[%clk 0:00:53.4]} 22... Bf7 {[%clk 0:00:43.7]} 23. Na5 {[%clk 0:00:53.5]}
23... Rd7 {[%clk 0:00:38.3]} 24. Qa6 {[%clk 0:00:39]} 24... Rc8 {[%clk
0:00:37.2]} 25. Rad1 {[%clk 0:00:34.1]} 25... Rxd1 {[%clk 0:00:26.7]} 26. Rxd1
{[%clk 0:00:33.4]} 26... Rd8 {[%clk 0:00:27.2]} 27. Rxd8+ {[%clk 0:00:29.9]}
27... Qxd8 {[%clk 0:00:27.3]} 28. Qe2 {[%clk 0:00:28.5]} 28... Qd7 {[%clk
0:00:22.3]} 29. a3 {[%clk 0:00:26.7]} 29... g6 {[%clk 0:00:20.7]} 30. g4 {[%clk
0:00:24.2]} 30... h5 {[%clk 0:00:19]} 31. h3 {[%clk 0:00:22.7]} 31... hxg4
{[%clk 0:00:18.1]} 32. hxg4 {[%clk 0:00:22.7]} 32... gxf5 {[%clk 0:00:17.5]} 33.
gxf5 {[%clk 0:00:22.8]} 33... Bf8 {[%clk 0:00:17.7]} 34. Kg2 {[%clk 0:00:22.7]}
34... Bh6 {[%clk 0:00:17.4]} 35. Kf3 {[%clk 0:00:21.5]} 35... Bh5+ {[%clk
0:00:17]} 0-1

[Event "*** SCC Grand Prix: Titled Tuesday Blitz"]
[Site "Chess.com"]
[Date "2020.07.14"]
[Round "9"]
[White "Euge_chess"]
[Black "winniethepooh04"]
[Result "0-1"]
[WhiteElo "2005"]
[BlackElo "2162"]
[TimeControl "180+1"]
[EndTime "11:46:53 PDT"]
[Termination "winniethepooh04 won by checkmate"]

1. e4 {[%clk 0:03:00.9]} 1... c5 {[%clk 0:02:55.8]} 2. c3 {[%clk 0:03:00.3]}
2... d6 {[%clk 0:02:54.1]} 3. d4 {[%clk 0:02:59.7]} 3... Nf6 {[%clk 0:02:54.6]}
4. Bd3 {[%clk 0:02:57.2]} 4... g6 {[%clk 0:02:54.3]} 5. Nf3 {[%clk 0:02:56.4]}
5... Bg7 {[%clk 0:02:54.7]} 6. O-O {[%clk 0:02:55.5]} 6... O-O {[%clk
0:02:53.8]} 7. Re1 {[%clk 0:02:54.3]} 7... Bg4 {[%clk 0:02:53]} 8. h3 {[%clk
0:02:52.3]} 8... Bxf3 {[%clk 0:02:52.3]} 9. Qxf3 {[%clk 0:02:51]} 9... Nfd7
{[%clk 0:02:52.7]} 10. d5 {[%clk 0:02:34.9]} 10... Ne5 {[%clk 0:02:51.1]} 11.
Qd1 {[%clk 0:02:34.4]} 11... Nxd3 {[%clk 0:02:48.1]} 12. Qxd3 {[%clk 0:02:33.9]}
12... Nd7 {[%clk 0:02:48.6]} 13. f4 {[%clk 0:02:32]} 13... Qc7 {[%clk 0:02:47]}
14. Nd2 {[%clk 0:02:28.1]} 14... a6 {[%clk 0:02:45.5]} 15. a4 {[%clk 0:02:27]}
15... Rac8 {[%clk 0:02:44.6]} 16. c4 {[%clk 0:02:09.4]} 16... b5 {[%clk
0:02:39.2]} 17. axb5 {[%clk 0:02:04.6]} 17... axb5 {[%clk 0:02:37.5]} 18. cxb5
{[%clk 0:02:03.9]} 18... c4 {[%clk 0:02:37.5]} 19. Qc2 {[%clk 0:01:56.1]} 19...
Qc5+ {[%clk 0:02:32.5]} 20. Kh2 {[%clk 0:01:54.3]} 20... Qxb5 {[%clk 0:02:32.9]}
21. Re3 {[%clk 0:01:40.8]} 21... Nc5 {[%clk 0:02:29.4]} 22. Qxc4 {[%clk
0:01:36.1]} 22... Qb6 {[%clk 0:02:03.6]} 23. Rea3 {[%clk 0:01:19.9]} 23... Ne6
{[%clk 0:01:45.6]} 24. Qf1 {[%clk 0:01:14.9]} 24... Nxf4 {[%clk 0:01:42.3]} 25.
Qxf4 {[%clk 0:01:11.2]} 25... Be5 {[%clk 0:01:41.3]} 26. Nf3 {[%clk 0:01:03.1]}
26... Bxf4+ {[%clk 0:01:40.2]} 27. Bxf4 {[%clk 0:01:02.5]} 27... Qxb2 {[%clk
0:01:38]} 28. R1a2 {[%clk 0:00:56.9]} 28... Qf6 {[%clk 0:01:36.3]} 29. Bg5
{[%clk 0:00:52.6]} 29... Qg7 {[%clk 0:01:32.2]} 30. Bxe7 {[%clk 0:00:47.9]}
30... Rfe8 {[%clk 0:01:28.9]} 31. Ra7 {[%clk 0:00:47.5]} 31... Rxe7 {[%clk
0:01:06.2]} 32. Rxe7 {[%clk 0:00:46.4]} 32... Qf6 {[%clk 0:01:06.6]} 33. Raa7
{[%clk 0:00:44.6]} 33... Qf4+ {[%clk 0:01:06.6]} 34. Kg1 {[%clk 0:00:38.3]}
34... Rc1+ {[%clk 0:01:04.8]} 35. Kf2 {[%clk 0:00:37.5]} 35... Rc2+ {[%clk
0:01:04.3]} 36. Kg1 {[%clk 0:00:30.4]} 36... Qe3+ {[%clk 0:01:02.4]} 37. Kh1
{[%clk 0:00:25.1]} 37... Qf2 {[%clk 0:00:57.3]} 38. Nh4 {[%clk 0:00:23.1]} 38...
Qf1+ {[%clk 0:00:31.7]} 39. Kh2 {[%clk 0:00:22.1]} 39... Qf4+ {[%clk 0:00:32.1]}
40. Kg1 {[%clk 0:00:20.4]} 40... Rc1# {[%clk 0:00:31.7]} 0-1